fUST/lending_fUST_20240516
["ID","MTS","AMOUNT","RATE_DAILY","PERIOD"]
[327119301,1715842241976,-500.0,0.00018971,2]
[327119303,1715842241986,-500.0,0.00018971,2]
[327119304,1715842241995,-501.73717795,0.00018971,2]
[327119306,1715842242004,-518.52660179,0.00018971,2]
[327119307,1715842242013,-500.97767403,0.00018971,2]
[327119309,1715842242022,-1125.48,0.00018971,2]
[327119311,1715842242033,-590.83875186,0.00018971,2]
[327119312,1715842242043,-500.0,0.00018971,2]
[327119314,1715842242053,-500.0,0.00018971,2]
[327119315,1715842242062,-3880.71,0.00018971,2]
[327119317,1715842242072,-500.0,0.00018971,2]
[327119319,1715842242081,-500.0,0.00018971,2]
[327119320,1715842242090,-500.0,0.00018971,2]
[327119322,1715842242099,-500.0,0.00018971,2]
[327119323,1715842242107,-500.0,0.00018971,2]
[327119325,1715842242117,-500.0,0.00018971,2]
[327119327,1715842242126,-4338.83,0.00018971,2]
[327119328,1715842242135,-465.74917975,0.00018971,2]
[327119330,1715842242146,-580.82197,0.00018976,2]
[327119331,1715842242155,-945.58204822,0.00018977,2]
[327119333,1715842242165,-500.0,0.00018977,2]
[327119335,1715842242174,-160.91882827,0.00018977,2]
[327119336,1715842242183,-500.0,0.00018977,2]
[327119338,1715842242192,-500.38457858,0.00018977,2]
[327119339,1715842242201,-286.33561248,0.00018978,2]
[327119341,1715842242210,-908.23959745,0.00018978,2]
[327119343,1715842242219,-2798.13,0.00018978,2]
[327119344,1715842242228,-921.69,0.00018978,2]
[327119346,1715842242238,-500.0,0.00018978,2]
[327119348,1715842242247,-566.08,0.00018978,2]
[327119349,1715842242256,-500.0,0.00018978,2]
[327119351,1715842242265,-783.35,0.00018978,2]
[327119353,1715842242278,-528.37195546,0.00018978,2]
[327119354,1715842242287,-1484.53,0.00018978,2]
[327119356,1715842242297,-535.22,0.00018978,2]
[327119358,1715842242307,-500.0,0.00018978,2]
[327119359,1715842242316,-1742.15,0.00018978,2]
[327119361,1715842242325,-500.0,0.00018978,2]
[327119362,1715842242334,-500.0,0.00018978,2]
[327119364,1715842242345,-500.0,0.00018978,2]
[327119366,1715842242354,-3577.85,0.00018978,2]
[327119367,1715842242364,-962.3,0.00018978,2]
[327119369,1715842242374,-982.32,0.00018978,2]
[327119370,1715842242383,-3653.1,0.00018978,2]
[327119372,1715842242393,-1324.34,0.00018978,2]
[327119374,1715842242403,-19294.1,0.00018978,2]
[327119375,1715842242412,-500.0,0.00018978,2]
[327119377,1715842242422,-500.0,0.00018978,2]
[327119379,1715842242432,-6263.41,0.00018978,2]
[327119380,1715842242441,-3193.6,0.00018978,2]
[327119382,1715842242450,-500.0,0.00018978,2]
[327119383,1715842242459,-2066.26,0.00018978,2]
[327119385,1715842242468,-500.0,0.00018978,2]
[327119387,1715842242477,-2047.13,0.00018978,2]
[327119388,1715842242486,-500.0,0.00018978,2]
[327119390,1715842242495,-500.0,0.00018978,2]
[327119391,1715842242504,-530.42059546,0.00018978,2]
[327119393,1715842242513,-673.75,0.00018978,2]
[327119395,1715842242523,-685.48,0.00018978,2]
[327119396,1715842242532,-2751.02,0.00018978,2]
[327119398,1715842242541,-2344.18,0.00018978,2]
[327119399,1715842242550,-926.69,0.00018978,2]
[327119401,1715842242559,-500.0,0.00018978,2]
[327119403,1715842242568,-662.9,0.00018978,2]
[327119404,1715842242578,-1611.93,0.00018978,2]
[327119406,1715842242587,-500.0,0.00018978,2]
[327119407,1715842242595,-500.0,0.00018978,2]
[327119409,1715842242604,-974.93,0.00018978,2]
[327119411,1715842242613,-1557.94267482,0.00018978,2]
[327123678,1715842307435,1280.1599831,0.00017976,2]
[327123679,1715842330681,333.950414,0.00017949,2]
[327123680,1715842399266,410.3337331,9.999e-05,2]
[327123681,1715842402986,21747.6481432,0.00017749,2]
[327123683,1715842497712,796.7561159,0.00017912,2]
[327123686,1715842536165,370.82451489,9.999e-05,2]
[327123694,1715842732496,250.0,0.00017651,2]
[327123696,1715842841711,521.04229526,9.999e-05,2]
[327123697,1715842851500,766.36174033,9.999e-05,2]
[327123698,1715842886264,371.33160426,9.999e-05,2]
[327123699,1715842904069,909.36767764,9.999e-05,2]
[327123700,1715842909394,166.975207,0.00017408,2]
[327123701,1715843034759,410.3337331,9.999e-05,2]
[327123703,1715843047618,164.10093993,0.00017913,2]
[327123706,1715843084703,154.82968734,9.999e-05,2]
[327123707,1715843177699,288.62,0.00010959,2]
[327123708,1715843187291,371.33160426,0.00018,2]
[327123709,1715843188219,240.51,0.00010959,2]
[327123710,1715843199014,200.43,0.00010959,2]
[327123711,1715843209325,167.02,0.00010959,2]
[327123712,1715843219944,835.15,0.00010959,2]
[327123713,1715843226306,-521.04229526,0.00018001,2]
[327123714,1715843226331,-27.3956644,0.00018002,2]
[327123733,1715843265064,766.36174033,0.00018,2]
[327123734,1715843274136,1580.95146224,9.999e-05,2]
[327123735,1715843275802,371.33160426,0.00018,2]
[327123736,1715843282921,20239.26546952,0.00018,2]
[327123737,1715843283072,766.36174033,0.00018,2]
[327123738,1715843289806,371.33160426,0.00018,2]
[327123739,1715843290068,1583.79618848,0.00018,2]
[327123740,1715843291898,500.0,0.00018,2]
[327123741,1715843302910,3762.14731657,0.00018,2]
[327123742,1715843302954,2076.92756911,0.00018,2]
[327123743,1715843303068,766.36174033,0.00018,2]
[327123744,1715843310363,903.78,0.00018,2]
[327123745,1715843312489,371.33160426,0.00018,2]
[327123746,1715843329088,766.36174033,0.00018,2]
[327123747,1715843334819,371.33160426,0.00018,2]
[327123748,1715843339883,803.06603636,0.00018,2]
[327123749,1715843349098,908.34740581,0.00018,2]
[327123750,1715843352114,-521.04229526,0.00018001,2]
[327123751,1715843352134,-4484.54558683,0.00018001,2]
[327123752,1715843358096,-54898.95653135,0.00018001,2]
[327123753,1715843358295,-1315.23065198,0.00018002,2]
[327123754,1715843358317,-570.6247994,0.00018003,2]
[327123755,1715843358339,-1722.0848285,0.00018004,2]
[327123756,1715843358360,-163.04209462,0.00018005,2]
[327123757,1715843358380,-277.38962769,0.00018006,2]
[327123758,1715843358400,-410.0306773,0.00018008,2]
[327123759,1715843358421,-7742.09450901,0.00018009,2]
[327123760,1715843358441,-209.34471627,0.00018013,2]
[327123761,1715843358461,-500.0,0.00018014,2]
[327123762,1715843358481,-3719.01,0.00018014,2]
[327123763,1715843358501,-4158.04,0.00018014,2]
[327123764,1715843358521,-922.2,0.00018014,2]
[327123765,1715843358542,-2479.79,0.00018014,2]
[327123766,1715843358562,-1269.16,0.00018014,2]
[327123767,1715843358582,-500.0,0.00018014,2]
[327123768,1715843358603,-500.0,0.00018014,2]
[327123769,1715843358625,-18490.18,0.00018014,2]
[327123770,1715843358644,-3516.77,0.00018014,2]
[327123771,1715843358666,-1961.83,0.00018014,2]
[327123772,1715843358687,-2636.39,0.00018014,2]
[327123773,1715843358708,-5287.4,0.00018014,2]
[327123774,1715843358731,-1544.77,0.00018014,2]
[327123775,1715843358753,-500.0,0.00018014,2]
[327123776,1715843358774,-14538.49,0.00018014,2]
[327123777,1715843358794,-14538.49,0.00018014,2]
[327123778,1715843358814,-1612.9,0.00018014,2]
[327123779,1715843358835,-10269.76120943,0.00018014,2]
[327123780,1715843358855,-197.00851648,0.00018027,2]
[327123781,1715843358878,-500.0,0.00018274,2]
[327123782,1715843358900,-903.78,0.00018274,2]
[327123783,1715843358921,-500.0,0.00018288,2]
[327123784,1715843358942,-3719.01,0.00018288,2]
[327123785,1715843358962,-4158.04,0.00018288,2]
[327123786,1715843358982,-922.2,0.00018288,2]
[327123787,1715843359003,-2479.79,0.00018288,2]
[327123788,1715843359024,-1269.16,0.00018288,2]
[327123789,1715843359044,-500.0,0.00018288,2]
[327123790,1715843359065,-500.0,0.00018288,2]
[327123791,1715843359090,-18490.18,0.00018288,2]
[327123792,1715843359110,-3516.77,0.00018288,2]
[327123793,1715843359131,-1961.83,0.00018288,2]
[327123794,1715843359151,-2636.39,0.00018288,2]
[327123795,1715843359177,-5287.4,0.00018288,2]
[327123796,1715843359198,-1544.77,0.00018288,2]
[327123797,1715843359218,-538.1006364,0.00018288,2]
[327123798,1715843359240,-1612.9,0.00018288,2]
[327123799,1715843359266,-500.0,0.00018548,2]
[327123800,1715843359298,-903.78,0.00018548,2]
[327123801,1715843359336,-500.0,0.00018562,2]
[327123802,1715843359367,-3719.01,0.00018562,2]
[327123803,1715843359401,-4158.04,0.00018562,2]
[327123804,1715843359437,-922.2,0.00018562,2]
[327123805,1715843359469,-2479.79,0.00018562,2]
[327123806,1715843359496,-1269.16,0.00018562,2]
[327123807,1715843359527,-500.0,0.00018562,2]
[327123808,1715843359561,-500.0,0.00018562,2]
[327123809,1715843359591,-18490.18,0.00018562,2]
[327123810,1715843359622,-3516.77,0.00018562,2]
[327123811,1715843359651,-1961.83,0.00018562,2]
[327123812,1715843359678,-2636.39,0.00018562,2]
[327123813,1715843359710,-5024.47955153,0.00018562,2]
[327123814,1715843359871,494.64386711,0.00018,2]
[327123815,1715843399563,500.0,0.00018,2]
[327123816,1715843413919,500.0,0.00018,2]
[327123817,1715843415860,3638.29,0.00018,2]
[327123818,1715843425532,496.2580705,0.00018,2]
[327123819,1715843426493,1533.98,0.00018,2]
[327123820,1715843429087,806.93,0.00018,2]
[327123889,1715843432441,-1363.90836539,0.00018003,2]
[327123892,1715843432452,-1890.23163461,0.00018003,2]
[327123895,1715843432462,-269.02183768,0.00018013,2]
[327123898,1715843432471,-4799.1,0.00018014,2]
[327123901,1715843432480,-837.26,0.00018014,2]
[327123904,1715843432490,-1269.33,0.00018014,2]
[327123907,1715843432499,-7259.83,0.00018014,2]
[327123909,1715843432508,-6548.84,0.00018014,2]
[327123911,1715843432517,-500.0,0.00018274,2]
[327123913,1715843432526,-500.0,0.00018274,2]
[327123914,1715843432535,-3638.29,0.00018274,2]
[327123915,1715843432545,-1533.98,0.00018274,2]
[327123916,1715843432554,-806.93,0.00018274,2]
[327123917,1715843432564,-3254.14,0.00018276,2]
[327123918,1715843432573,-4799.1,0.00018288,2]
[327123919,1715843432582,-837.26,0.00018288,2]
[327123920,1715843432591,-1269.33,0.00018288,2]
[327123921,1715843432600,-7259.83,0.00018288,2]
[327123922,1715843432609,-6548.84,0.00018288,2]
[327123923,1715843432618,-500.0,0.00018548,2]
[327123924,1715843432627,-500.0,0.00018548,2]
[327123925,1715843432636,-3638.29,0.00018548,2]
[327123926,1715843432645,-1533.98,0.00018548,2]
[327123927,1715843432654,-806.93,0.00018548,2]
[327123928,1715843432663,-3254.14,0.0001855,2]
[327123929,1715843432673,-262.92044847,0.00018562,2]
[327123930,1715843432683,-1544.77,0.00018562,2]
[327123931,1715843432691,-1612.9,0.00018562,2]
[327123932,1715843432701,-4799.1,0.00018562,2]
[327123933,1715843432711,-3504.024264,0.00018562,2]
[327123934,1715843432721,-284.849285,0.00018562,2]
[327123935,1715843432730,-3504.024264,0.00018562,2]
[327123936,1715843432739,-284.849285,0.00018562,2]
[327123937,1715843432748,-837.26,0.00018562,2]
[327123938,1715843432757,-1269.33,0.00018562,2]
[327123939,1715843432767,-7259.83,0.00018562,2]
[327123940,1715843432776,-6548.84,0.00018562,2]
[327123941,1715843432785,-151.0,0.00018562,2]
[327123942,1715843432794,-416.87621729,0.00018748,2]
[327123943,1715843432804,-151.0,0.00018778,2]
[327123944,1715843432813,-247.100156,0.00018778,2]
[327123945,1715843432823,-247.100156,0.00018778,2]
[327123946,1715843432832,-151.0,0.00018778,2]
[327123947,1715843432844,-493.379871,0.00018778,2]
[327123948,1715843432854,-493.379871,0.00018778,2]
[327123949,1715843432863,-2000.0,0.00018778,2]
[327123950,1715843432872,-1014.35408399,0.00018781,2]
[327123951,1715843432882,-500.0,0.00018822,2]
[327123952,1715843432891,-903.78,0.00018822,2]
[327123953,1715843432901,-500.0,0.00018822,2]
[327123954,1715843432912,-500.0,0.00018822,2]
[327123955,1715843432922,-3638.29,0.00018822,2]
[327123956,1715843432931,-1533.98,0.00018822,2]
[327123957,1715843432940,-806.93,0.00018822,2]
[327123958,1715843432949,-3254.14,0.00018824,2]
[327123959,1715843432958,-486.7815926,0.00018834,2]
[327123960,1715843432967,-1032.98635072,0.00018835,2]
[327124641,1715843446350,-684.66,0.00018014,2]
[327124642,1715843446360,-684.66,0.00018288,2]
[327124643,1715843446369,-163.52180828,0.00018562,2]
[327125397,1715843454549,942.22196607,0.00015,2]
[327125532,1715843455853,2681.54,0.00018,2]
[327125573,1715843460633,1042.94758507,9.999e-05,2]
[327125574,1715843472859,3190.91,0.00018,2]
[327125575,1715843481244,883.29,0.00018,2]
[327125576,1715843481932,500.0,0.00018,2]
[327125577,1715843482323,154.82968734,9.999e-05,2]
[327125578,1715843483173,154.82968734,9.999e-05,2]
[327125579,1715843483439,1402.75151276,9.999e-05,2]
[327125580,1715843485021,2106.91605169,0.00018001,2]
[327125581,1715843485072,500.0,0.00018,2]
[327125582,1715843486439,1084.20890532,0.000138,2]
[327125583,1715843486744,236.44820243,9.999e-05,2]
[327125584,1715843488616,522.43468076,9.999e-05,2]
[327125585,1715843490109,154.82968734,9.999e-05,2]
[327125586,1715843490696,502.39304669,0.00018,2]
[327125587,1715843491930,1495.91634512,9.999e-05,2]
[327125588,1715843492695,542.49,0.00018,2]
[327125589,1715843494716,585.15051404,9.999e-05,2]
[327125590,1715843494840,492.79282332,9.999e-05,2]
[327125591,1715843496056,395.19974572,9.999e-05,2]
[327125592,1715843496560,154.82968734,9.999e-05,2]
[327125593,1715843497211,154.82968734,9.999e-05,2]
[327125594,1715843497456,2677.97514069,0.00018001,2]
[327125595,1715843498123,500.0,0.00018,2]
[327125596,1715843500122,1350.02169683,9.999e-05,2]
[327125597,1715843501699,154.82968734,9.999e-05,2]
[327125598,1715843502857,370.82451489,9.999e-05,2]
[327125599,1715843504104,895.63460499,0.00018,2]
[327125600,1715843505465,11048.35312289,9.999e-05,2]
[327125601,1715843506091,500.0,0.00018,2]
[327125602,1715843506706,1683.16697261,0.00015,2]
[327125603,1715843509212,284.94540933,9.999e-05,2]
[327125604,1715843510275,3586.19578165,0.00017903,2]
[327125605,1715843513862,500.0,0.00018,2]
[327125606,1715843514119,154.82968734,9.999e-05,2]
[327125607,1715843516090,687.4,0.00018,2]
[327125608,1715843518083,750.71,0.00018,2]
[327125609,1715843525240,1716.6,0.00018,2]
[327125610,1715843528336,925.23112735,9.999e-05,2]
[327125611,1715843528885,154.82968734,9.999e-05,2]
[327125612,1715843532836,59383.50211818,0.00018001,2]
[327125613,1715843534152,2399.76310029,0.00018001,2]
[327125614,1715843535809,1896.9888826,0.00018001,2]
[327125615,1715843543936,316.01546853,9.999e-05,2]
[327125616,1715843544393,2422.61,0.00018,2]
[327125617,1715843562963,154.82968734,9.999e-05,2]
[327125618,1715843565686,4626.48,0.00018,2]
[327125619,1715843566579,395.19974572,0.00018001,2]
[327125620,1715843567469,492.79282332,0.00018001,2]
[327125621,1715843573411,1422.68,0.00018,2]
[327125622,1715843574710,2633.51235248,0.00018001,2]
[327125623,1715843581566,811.325492,0.00017078,2]
[327125624,1715843597473,1411.28,0.00018,2]
[327125625,1715843598100,822.22,0.00018,2]
[327125626,1715843602980,512.92,0.00018,2]
[327125627,1715843607349,59383.50211818,0.00018001,2]
[327125628,1715843611415,912.97,0.00018,2]
[327125629,1715843612468,500.0,0.00018,2]
[327125630,1715843629016,1669.56,0.00018,2]
[327125631,1715843629353,59383.50211818,0.00018001,2]
[327125632,1715843643360,18960.66225856,0.00018001,2]
[327125633,1715843645143,500.0,0.00018,2]
[327125634,1715843651796,500.0,0.00018,2]
[327125635,1715843657288,6352.35,0.00018,2]
[327125636,1715843660008,500.0,0.00018,2]
[327125637,1715843666782,5730.24,0.00018,2]
[327125638,1715843672630,500.0,0.00018,2]
[327125639,1715843675198,3428.77,0.00018,2]
[327125640,1715843687442,500.0,0.00018,2]
[327125641,1715843695195,941.47,0.00018,2]
[327125642,1715843695233,627.61,0.00018,2]
[327125643,1715843698338,154.82968734,9.999e-05,2]
[327125644,1715843706233,500.0,0.00018,2]
[327125645,1715843715596,500.0,0.00018,2]
[327125646,1715843723882,4751.93,0.00018,2]
[327125647,1715843726944,500.0,0.00018,2]
[327125648,1715843739897,23387.47,0.00018,2]
[327125649,1715843742253,1076.27,0.00018,2]
[327125650,1715843742597,1980.17,0.00018,2]
[327125651,1715843753007,500.0,0.00018,2]
[327125652,1715843754046,500.0,0.00018,2]
[327125653,1715843758075,500.38091099,0.00018,2]
[327125654,1715843758344,1744.43,0.00018,2]
[327125655,1715843763383,645.67,0.00018,2]
[327125656,1715843763864,8310.43,0.00018,2]
[327125657,1715843767444,3198.79,0.00018,2]
[327125658,1715843774805,154.82968734,0.00018001,2]
[327125659,1715843776688,500.0,0.00018,2]
[327125660,1715843779676,888.08,0.00018,2]
[327125661,1715843784896,10508.32,0.00018,2]
[327125662,1715843788244,500.0,0.00018,2]
[327125663,1715843794853,500.0,0.00018,2]
[327125664,1715843795061,849.2,0.00018,2]
[327125665,1715843797979,514.82239602,0.00018,2]
[327125666,1715843801621,500.0,0.00018,2]
[327125667,1715843808536,2426.79,0.00018,2]
[327125670,1715843824124,237.55587717,0.00017912,2]
[327125671,1715843826064,237.55587714,0.00017978,2]
[327125672,1715843837559,20239.26546952,0.00018001,2]
[327125673,1715843842206,500.0,0.00018,2]
[327125674,1715843846753,3774.53,0.00018,2]
[327125675,1715843858185,500.0,0.00018,2]
[327125676,1715843858228,500.0,0.00018,2]
[327125677,1715843864257,500.0,0.00018,2]
[327125678,1715843869826,500.0,0.00018,2]
[327125679,1715843873531,500.0,0.00018,2]
[327125680,1715843878207,500.0,0.00018,2]
[327125681,1715843885352,500.0,0.00018,2]
[327125682,1715843889092,502.15328927,0.00018,2]
[327125683,1715843896133,1595.54,0.00018,2]
[327125684,1715843899495,1616.02,0.00018,2]
[327125685,1715843904436,791.84,0.00018,2]
[327125686,1715843908358,509.74113892,0.00018,2]
[327125687,1715843910351,4587.59,0.00018,2]
[327125688,1715843912931,0.24812288,0.00018,2]
[327125689,1715843912955,976.63187712,0.00018,2]
[327125690,1715843923107,770.41,0.00018,2]
[327125691,1715843928987,250.57879982,0.00018,2]
[327125692,1715843931424,9351.81,0.00018,2]
[327125693,1715843943664,1163.07,0.00018,2]
[327125694,1715843944637,500.0,0.00018,2]
[327125695,1715843949197,505.58,0.00018,2]
[327125696,1715843959166,692.42,0.00018,2]
[327125697,1715843960895,7812.73,0.00018,2]
[327125698,1715843976234,624.24,0.00018,2]
[327125699,1715843984874,500.0,0.00018,2]
[327125700,1715843986000,1598.85,0.00018,2]
[327125701,1715843989014,1491.45,0.00018,2]
[327125702,1715844000685,4119.76,0.00018,2]
[327125703,1715844004149,500.0,0.00018,2]
[327125704,1715844010625,500.0,0.00018,2]
[327125705,1715844012967,1647.15,0.00018,2]
[327125706,1715844022914,3830.92,0.00018,2]
[327125707,1715844025084,4755.64,0.00018,2]
[327125708,1715844032672,3337.48910033,0.00017902,2]
[327125709,1715844036461,405.662746,0.0001701,2]
[327125710,1715844040773,1742.37,0.00018,2]
[327125711,1715844044672,500.0,0.00018,2]
[327125712,1715844051341,5505.09,0.00018,2]
[327125713,1715844058408,500.0,0.00018,2]
[327125714,1715844074088,90202.96,0.00018,2]
[327125715,1715844086285,500.0,0.00018,2]
[327125716,1715844100001,26199.69640132,0.00018,2]
[327125717,1715844104119,500.0,0.00018,2]
[327125718,1715844106865,4880.9,0.00018,2]
[327125719,1715844114428,500.0,0.00018,2]
[327125720,1715844116000,23634.59107541,0.00018,2]
[327125721,1715844116026,1146.297196,0.00018,2]
[327125735,1715844549054,-2677.97514069,0.00017892,2]
[327125736,1715844549076,-2633.51235248,0.00017893,2]
[327125737,1715844549099,-235.02182273,0.000179,2]
[327125738,1715844549122,-235.0218227,0.00017901,2]
[327125739,1715844549143,-235.0218227,0.00017901,2]
[327125740,1715844549164,-235.0218227,0.00017902,2]
[327125741,1715844549186,-235.0218227,0.00017902,2]
[327125742,1715844549206,-9564.6583934,0.00017998,2]
[327125743,1715844549228,-500.0,0.00017999,2]
[327125744,1715844549249,-753.15,0.00017999,2]
[327125745,1715844549269,-500.0,0.00018,2]
[327125746,1715844549289,-503.83951576,0.00018,2]
[327125747,1715844549310,-812.58,0.00018,2]
[327125748,1715844549331,-664.53,0.00018,2]
[327125749,1715844549351,-513.18353158,0.00018,2]
[327125750,1715844549371,-6984.02619751,0.00018,2]
[327125751,1715844549392,-500.0,0.00018,2]
[327125752,1715844549414,-500.0,0.00018,2]
[327125753,1715844549434,-154.82968734,0.00018,2]
[327125754,1715844549454,-1233.4,0.00018,2]
[327125755,1715844549475,-1966.35,0.00018,2]
[327125756,1715844549497,-500.0,0.00018,2]
[327125757,1715844549518,-500.0,0.00018,2]
[327125758,1715844549539,-3569.24,0.00018,2]
[327125759,1715844549559,-500.0,0.00018,2]
[327125760,1715844549583,-500.0,0.00018,2]
[327125761,1715844549603,-275.90616999,0.00018,2]
[327125762,1715844549625,-500.0,0.00018,2]
[327125763,1715844549646,-500.0,0.00018,2]
[327125764,1715844549671,-3916.57,0.00018,2]
[327125765,1715844549691,-500.0,0.00018,2]
[327125766,1715844549711,-506.53725978,0.00018,2]
[327125767,1715844549732,-1118.3,0.00018,2]
[327125768,1715844549754,-1192.08,0.00018,2]
[327125769,1715844549774,-3031.91,0.00018,2]
[327125770,1715844549796,-500.0,0.00018,2]
[327125771,1715844549817,-672.44,0.00018,2]
[327125772,1715844549838,-503.05071071,0.00018,2]
[327125773,1715844549859,-2711.78,0.00018,2]
[327125774,1715844550028,-500.0,0.00018,2]
[327125775,1715844550050,-500.0,0.00018,2]
[327125776,1715844550071,-3057.96,0.00018,2]
[327125777,1715844550092,-3022.97,0.00018,2]
[327125778,1715844550114,-641.97,0.00018,2]
[327125779,1715844550134,-500.0,0.00018,2]
[327125780,1715844550154,-500.0,0.00018,2]
[327125781,1715844550174,-500.0,0.00018,2]
[327125782,1715844550193,-502.77499892,0.00018,2]
[327125783,1715844550213,-500.0,0.00018,2]
[327125784,1715844550234,-1110.52,0.00018,2]
[327125785,1715844550256,-16178.9,0.00018,2]
[327125786,1715844550276,-3077.17,0.00018,2]
[327125787,1715844550296,-500.0,0.00018,2]
[327125788,1715844550317,-1873.85,0.00018,2]
[327125789,1715844550343,-1645.08,0.00018,2]
[327125790,1715844550363,-1660.49,0.00018,2]
[327125791,1715844550382,-1168.94,0.00018,2]
[327125792,1715844550406,-1021.85,0.00018,2]
[327125793,1715844550427,-4433.71,0.00018,2]
[327125794,1715844550446,-598.93,0.00018,2]
[327125795,1715844550468,-2306.84,0.00018,2]
[327125796,1715844550495,-1470.09,0.00018,2]
[327125797,1715844550515,-1351.67,0.00018,2]
[327125798,1715844550534,-267.1208334,0.00018001,2]
[327125799,1715844550554,-500.0,0.00018001,2]
[327125800,1715844550578,-1278.32,0.00018001,2]
[327125801,1715844550599,-2569.81,0.00018001,2]
[327125802,1715844550620,-846.48,0.00018001,2]
[327125803,1715844550640,-9473.50230045,0.00018001,2]
[327125804,1715844550662,-519.89,0.00018001,2]
[327125805,1715844550683,-500.0,0.00018001,2]
[327125806,1715844550704,-500.0,0.00018001,2]
[327125807,1715844550725,-719.43,0.00018001,2]
[327125808,1715844550745,-500.0,0.00018001,2]
[327125809,1715844550766,-658.75,0.00018001,2]
[327125810,1715844550787,-500.0,0.00018001,2]
[327125811,1715844550808,-1363.4,0.00018001,2]
[327125812,1715844550829,-787.96,0.00018001,2]
[327125813,1715844550851,-500.0,0.00018001,2]
[327125814,1715844550871,-500.0,0.00018001,2]
[327125815,1715844550892,-874.93,0.00018001,2]
[327125816,1715844550914,-1599.99,0.00018001,2]
[327125817,1715844550935,-500.0,0.00018001,2]
[327125818,1715844550956,-500.0,0.00018001,2]
[327125819,1715844550978,-500.0,0.00018001,2]
[327125820,1715844551000,-500.0,0.00018001,2]
[327125821,1715844551022,-13326.95,0.00018001,2]
[327125822,1715844551044,-11466.52379446,0.00018001,2]
[327125823,1715844574110,-17598.486,0.00017892,2]
[327125824,1715844586762,202.831373,0.00017004,2]
[327125869,1715844632367,-2963.21629375,0.000179,2]
[327125871,1715844632377,-647.23076676,0.00017999,2]
[327125872,1715844632387,-429.34752323,0.00017999,2]
[327125873,1715844632396,-500.0,0.00017999,2]
[327125874,1715844632405,-1516.20451626,0.00017999,2]
[327125875,1715844632414,-2598.79,0.00017999,2]
[327125877,1715844632423,-2905.58,0.00017999,2]
[327125879,1715844632432,-644.42,0.00017999,2]
[327125881,1715844632442,-500.0,0.00017999,2]
[327125883,1715844632451,-500.0,0.00017999,2]
[327125884,1715844632460,-500.0,0.00018,2]
[327125885,1715844632470,-1352.48,0.00018,2]
[327125886,1715844632479,-220.11657291,0.00018,2]
[327125887,1715844632488,-12293.89,0.00018,2]
[327125888,1715844632497,-677.47,0.00018,2]
[327125889,1715844632507,-1337.69,0.00018,2]
[327125890,1715844632516,-4199.22,0.00018,2]
[327125891,1715844632527,-1818.24,0.00018,2]
[327125892,1715844632537,-1144.36,0.00018,2]
[327125893,1715844632546,-500.0,0.00018,2]
[327125894,1715844632556,-711.77,0.00018,2]